[Event "Early-Titled-Tuesday-Blitz-February-06-2024"]
[Site "Chess.com"]
[Date "2024.02.06"]
[Round "11"]
[White "nihalsarin"]
[Black "h4parah5"]
[Result "0-1"]
[WhiteElo "3107"]
[BlackElo "2970"]
[TimeControl "180+1"]
[EndTime "10:08:13 PST"]
[Termination "h4parah5 won by resignation"]

1. a3 {[%clk 0:03:00.9]} 1... Nf6 {[%clk 0:02:58.8]} 2. Nf3 {[%clk 0:02:59.9]}
2... d5 {[%clk 0:02:58.2]} 3. e3 {[%clk 0:02:59.2]} 3... Bf5 {[%clk 0:02:49.6]}
4. c4 {[%clk 0:02:59]} 4... e6 {[%clk 0:02:49.1]} 5. Qb3 {[%clk 0:02:58.3]} 5...
Qc8 {[%clk 0:02:44.7]} 6. cxd5 {[%clk 0:02:51.3]} 6... exd5 {[%clk 0:02:44.3]}
7. Nc3 {[%clk 0:02:52.1]} 7... c6 {[%clk 0:02:44.1]} 8. Be2 {[%clk 0:02:49]}
8... Be7 {[%clk 0:02:42.2]} 9. O-O {[%clk 0:02:48.9]} 9... O-O {[%clk
0:02:42.1]} 10. d3 {[%clk 0:02:49.7]} 10... Re8 {[%clk 0:02:41.4]} 11. Qd1
{[%clk 0:02:46.6]} 11... a5 {[%clk 0:02:40.3]} 12. b3 {[%clk 0:02:47]} 12... Na6
{[%clk 0:02:34.3]} 13. Bb2 {[%clk 0:02:47.5]} 13... h6 {[%clk 0:02:33.6]} 14.
Na4 {[%clk 0:02:47.4]} 14... Qd8 {[%clk 0:02:30.8]} 15. Rc1 {[%clk 0:02:47.6]}
15... Bh7 {[%clk 0:02:26.9]} 16. h3 {[%clk 0:02:47.2]} 16... Rc8 {[%clk
0:02:25]} 17. d4 {[%clk 0:02:38]} 17... b5 {[%clk 0:02:23.4]} 18. Nc5 {[%clk
0:02:34.2]} 18... Nxc5 {[%clk 0:02:17.5]} 19. dxc5 {[%clk 0:02:35.1]} 19... Ne4
{[%clk 0:02:14.5]} 20. b4 {[%clk 0:02:35.1]} 20... Bf5 {[%clk 0:02:09]} 21. Nd4
{[%clk 0:02:25]} 21... Bd7 {[%clk 0:02:08.3]} 22. Nb3 {[%clk 0:02:25.7]} 22...
axb4 {[%clk 0:02:06.3]} 23. axb4 {[%clk 0:02:26.6]} 23... Ra8 {[%clk 0:02:06.3]}
24. Ra1 {[%clk 0:02:23.6]} 24... Qc7 {[%clk 0:02:02.7]} 25. Qc2 {[%clk
0:02:08.8]} 25... Rxa1 {[%clk 0:01:45.6]} 26. Bxa1 {[%clk 0:02:07.8]} 26... Ra8
{[%clk 0:01:44]} 27. Bd4 {[%clk 0:02:05.3]} 27... Ng5 {[%clk 0:01:40.8]} 28. f4
{[%clk 0:01:55.7]} 28... Ne4 {[%clk 0:01:38.4]} 29. Bd3 {[%clk 0:01:55.5]} 29...
Bf5 {[%clk 0:01:28.5]} 30. Be5 {[%clk 0:01:55.8]} 30... Qd7 {[%clk 0:01:22]} 31.
Nd4 {[%clk 0:01:56.5]} 31... Bh7 {[%clk 0:01:21.9]} 32. f5 {[%clk 0:01:56.3]}
32... Bf6 {[%clk 0:01:14.8]} 33. Bxf6 {[%clk 0:01:51.4]} 33... Nxf6 {[%clk
0:01:15.7]} 34. Qb2 {[%clk 0:01:35.4]} 34... Qe8 {[%clk 0:01:13.6]} 35. Rf3
{[%clk 0:01:34.5]} 35... h5 {[%clk 0:01:07.9]} 36. Nc2 {[%clk 0:01:15.7]} 36...
Nd7 {[%clk 0:01:01.8]} 37. Rf1 {[%clk 0:01:04.8]} 37... Qe5 {[%clk 0:00:56.4]}
38. Qd4 {[%clk 0:00:59.5]} 38... g5 {[%clk 0:00:40.3]} 39. fxg6 {[%clk
0:00:50.8]} 39... Bxg6 {[%clk 0:00:39.2]} 40. Bxg6 {[%clk 0:00:49.4]} 40... fxg6
{[%clk 0:00:40.1]} 41. Qxe5 {[%clk 0:00:36.6]} 41... Nxe5 {[%clk 0:00:39.3]} 42.
Rf6 {[%clk 0:00:37.5]} 42... Re8 {[%clk 0:00:16.5]} 43. Nd4 {[%clk 0:00:37.1]}
43... Kg7 {[%clk 0:00:16.2]} 44. Rd6 {[%clk 0:00:37.2]} 44... Nc4 {[%clk
0:00:15.8]} 45. Rxc6 {[%clk 0:00:33.3]} 45... Rxe3 {[%clk 0:00:16.3]} 46. Nxb5
{[%clk 0:00:28.2]} 46... Rb3 {[%clk 0:00:16.1]} 47. Nc7 {[%clk 0:00:27.2]} 47...
Rxb4 {[%clk 0:00:14.8]} 48. Nxd5 {[%clk 0:00:27.8]} 48... Rb1+ {[%clk
0:00:14.5]} 49. Kh2 {[%clk 0:00:19.4]} 49... Nd2 {[%clk 0:00:13.8]} 50. Kg3
{[%clk 0:00:18.8]} 50... Rc1 {[%clk 0:00:12.7]} 51. Rc7+ {[%clk 0:00:18.2]}
51... Kh6 {[%clk 0:00:11.9]} 52. c6 {[%clk 0:00:18.7]} 52... Kg5 {[%clk
0:00:10.5]} 53. h4+ {[%clk 0:00:18.3]} 53... Kf5 {[%clk 0:00:10.5]} 54. Rc8
{[%clk 0:00:06.2]} 54... Ne4+ {[%clk 0:00:09.8]} 55. Kf3 {[%clk 0:00:06.4]}
55... Nd6 {[%clk 0:00:10.1]} 56. Rf8+ {[%clk 0:00:04.8]} 56... Ke5 {[%clk
0:00:09.8]} 57. Nf4 {[%clk 0:00:05.3]} 57... Rc3+ {[%clk 0:00:08.1]} 58. Ke2
{[%clk 0:00:05.9]} 58... Rxc6 {[%clk 0:00:07.8]} 59. Nxg6+ {[%clk 0:00:06.7]}
59... Ke4 {[%clk 0:00:06.8]} 60. Rf4+ {[%clk 0:00:06.4]} 60... Kd5 {[%clk
0:00:06.9]} 61. Ra4 {[%clk 0:00:03.8]} 61... Rc4 {[%clk 0:00:06]} 62. Kf3 {[%clk
0:00:04.6]} 62... Rxa4 {[%clk 0:00:05.5]} 63. Nf4+ {[%clk 0:00:05.4]} 63... Ke5
{[%clk 0:00:05.4]} 64. Nxh5 {[%clk 0:00:06.2]} 64... Rxh4 {[%clk 0:00:05.8]} 65.
Ng3 {[%clk 0:00:06.9]} 65... Nf5 {[%clk 0:00:05.5]} 66. Ne2 {[%clk 0:00:06.8]}
66... Rb4 {[%clk 0:00:05.6]} 67. Ng1 {[%clk 0:00:05.2]} 67... Rb3+ {[%clk
0:00:05.3]} 68. Kf2 {[%clk 0:00:05.8]} 68... Kf4 {[%clk 0:00:05.2]} 69. Ne2+
{[%clk 0:00:06.2]} 69... Kg4 {[%clk 0:00:05.5]} 70. Nc1 {[%clk 0:00:06.4]} 70...
Rb2+ {[%clk 0:00:05.4]} 71. Ke1 {[%clk 0:00:07.1]} 71... Rxg2 {[%clk 0:00:05.3]}
72. Nd3 {[%clk 0:00:07.7]} 72... Nd4 {[%clk 0:00:04.7]} 73. Kf1 {[%clk
0:00:08.1]} 73... Ra2 {[%clk 0:00:04.5]} 74. Ke1 {[%clk 0:00:08.8]} 74... Kf3
{[%clk 0:00:04.5]} 75. Kd1 {[%clk 0:00:09.5]} 75... Ke3 {[%clk 0:00:04.5]} 0-1

[Event "Early-Titled-Tuesday-Blitz-February-06-2024"]
[Site "Chess.com"]
[Date "2024.02.06"]
[Round "11"]
[White "atomicmate123"]
[Black "ExchangeAB"]
[Result "1/2-1/2"]
[WhiteElo "2347"]
[BlackElo "2422"]
[TimeControl "180+1"]
[EndTime "10:08:18 PST"]
[Termination "Game drawn by repetition"]

1. e4 {[%clk 0:03:00.9]} 1... c6 {[%clk 0:03:00.1]} 2. d4 {[%clk 0:02:59.2]}
2... d5 {[%clk 0:03:01]} 3. exd5 {[%clk 0:02:56.9]} 3... cxd5 {[%clk 0:03:01.9]}
4. Bd3 {[%clk 0:02:56.9]} 4... Nf6 {[%clk 0:03:02.8]} 5. Bf4 {[%clk 0:02:54.2]}
5... Nc6 {[%clk 0:03:03.1]} 6. c3 {[%clk 0:02:54.4]} 6... Bg4 {[%clk 0:03:03.6]}
7. Qb3 {[%clk 0:02:54.4]} 7... Qd7 {[%clk 0:03:04.2]} 8. Nd2 {[%clk 0:02:54.1]}
8... e6 {[%clk 0:03:04.6]} 9. Ngf3 {[%clk 0:02:54.3]} 9... Bxf3 {[%clk
0:03:05.2]} 10. Nxf3 {[%clk 0:02:54]} 10... Bd6 {[%clk 0:03:05.8]} 11. Bg3
{[%clk 0:02:54.3]} 11... O-O {[%clk 0:03:03.9]} 12. O-O {[%clk 0:02:54.1]} 12...
Rab8 {[%clk 0:03:02.7]} 13. Rfe1 {[%clk 0:02:47.2]} 13... Bxg3 {[%clk 0:03:00]}
14. hxg3 {[%clk 0:02:47.1]} 14... Qc7 {[%clk 0:02:54.3]} 15. Ne5 {[%clk
0:02:43.9]} 15... Nxe5 {[%clk 0:02:49.7]} 16. dxe5 {[%clk 0:02:43.7]} 16... Nd7
{[%clk 0:02:49.6]} 17. Qc2 {[%clk 0:02:39.2]} 17... g6 {[%clk 0:02:49.4]} 18.
Qe2 {[%clk 0:02:36.3]} 18... b5 {[%clk 0:02:37.8]} 19. a3 {[%clk 0:02:29.6]}
19... a5 {[%clk 0:02:37.5]} 20. Rac1 {[%clk 0:02:27.2]} 20... Nc5 {[%clk
0:02:33.7]} 21. Bc2 {[%clk 0:02:23.3]} 21... Qb6 {[%clk 0:02:32.9]} 22. b4
{[%clk 0:02:21.3]} 22... Nd7 {[%clk 0:02:23.8]} 23. Bd3 {[%clk 0:02:17.6]} 23...
a4 {[%clk 0:02:19.5]} 24. Rc2 {[%clk 0:01:48.6]} 24... Rfc8 {[%clk 0:02:19.1]}
25. Rec1 {[%clk 0:01:48.6]} 25... Qc6 {[%clk 0:02:13]} 26. Kh1 {[%clk
0:01:37.4]} 26... Rc7 {[%clk 0:02:09.6]} 27. f4 {[%clk 0:01:33.6]} 27... Kg7
{[%clk 0:02:06.2]} 28. Qf1 {[%clk 0:01:32.9]} 28... Qb6 {[%clk 0:02:04.4]} 29.
Qe2 {[%clk 0:01:30.9]} 29... h5 {[%clk 0:02:03.8]} 30. Qf3 {[%clk 0:01:27.9]}
30... Rcc8 {[%clk 0:02:02.6]} 31. Qe2 {[%clk 0:01:24.8]} 31... Rh8 {[%clk
0:02:02.1]} 32. Qf3 {[%clk 0:01:18.8]} 32... Rh6 {[%clk 0:01:57.3]} 33. Qf2
{[%clk 0:01:17.6]} 33... Qxf2 {[%clk 0:01:55.2]} 34. Rxf2 {[%clk 0:01:18.1]}
34... Kf8 {[%clk 0:01:52]} 35. Be2 {[%clk 0:01:14.4]} 35... Ke7 {[%clk
0:01:51.9]} 36. Rf3 {[%clk 0:01:12.3]} 36... Rhh8 {[%clk 0:01:51.6]} 37. Rd3
{[%clk 0:01:11.8]} 37... Rhc8 {[%clk 0:01:51.4]} 38. Rd2 {[%clk 0:01:08.7]}
38... Kd8 {[%clk 0:01:50.4]} 39. f5 {[%clk 0:01:04.4]} 39... gxf5 {[%clk
0:01:48.5]} 40. Kg1 {[%clk 0:01:03.3]} 40... Ke7 {[%clk 0:01:46.8]} 41. Bxh5
{[%clk 0:01:01.5]} 41... Nxe5 {[%clk 0:01:47]} 42. Re2 {[%clk 0:00:57.1]} 42...
Nc4 {[%clk 0:01:46.8]} 43. Bf3 {[%clk 0:00:55.9]} 43... Kf6 {[%clk 0:01:45.2]}
44. Ra1 {[%clk 0:00:49.2]} 44... Ne5 {[%clk 0:01:44.4]} 45. Re3 {[%clk
0:00:49.1]} 45... Nxf3+ {[%clk 0:01:40.1]} 46. gxf3 {[%clk 0:00:48.1]} 46... Rc4
{[%clk 0:01:40.1]} 47. Rd1 {[%clk 0:00:45]} 47... Rg8 {[%clk 0:01:38.5]} 48. Kf2
{[%clk 0:00:43.3]} 48... f4 {[%clk 0:01:35]} 49. gxf4 {[%clk 0:00:42.5]} 49...
Rxf4 {[%clk 0:01:35.9]} 50. Rd4 {[%clk 0:00:40.7]} 50... Rf5 {[%clk 0:01:30]}
51. Rh4 {[%clk 0:00:36.3]} 51... Rfg5 {[%clk 0:01:29.2]} 52. Ke2 {[%clk
0:00:33.5]} 52... Rg2+ {[%clk 0:01:27.6]} 53. Kd3 {[%clk 0:00:33.7]} 53... Ra2
{[%clk 0:01:28]} 54. Kd4 {[%clk 0:00:33.2]} 54... Rxa3 {[%clk 0:01:26.7]} 55.
Kc5 {[%clk 0:00:33.3]} 55... Rb8 {[%clk 0:01:21.5]} 56. Rh6+ {[%clk 0:00:26.5]}
56... Ke7 {[%clk 0:01:21.6]} 57. Rh5 {[%clk 0:00:24.3]} 57... Ra1 {[%clk
0:01:05]} 58. f4 {[%clk 0:00:22.9]} 58... a3 {[%clk 0:01:04.7]} 59. f5 {[%clk
0:00:21.2]} 59... Rf1 {[%clk 0:00:59.4]} 60. fxe6 {[%clk 0:00:19.8]} 60... fxe6
{[%clk 0:01:00.3]} 61. Rh7+ {[%clk 0:00:19.9]} 61... Rf7 {[%clk 0:01:00.2]} 62.
Rh6 {[%clk 0:00:19.6]} 62... a2 {[%clk 0:00:45.8]} 63. Rexe6+ {[%clk 0:00:16.2]}
63... Kf8 {[%clk 0:00:43]} 64. Rh1 {[%clk 0:00:12.9]} 64... Kg7 {[%clk
0:00:30.8]} 65. Rg1+ {[%clk 0:00:11.9]} 65... Kh8 {[%clk 0:00:29.7]} 66. Rh6+
{[%clk 0:00:11.1]} 66... Rh7 {[%clk 0:00:30]} 67. Rhg6 {[%clk 0:00:11.4]} 67...
Ra8 {[%clk 0:00:28.5]} 68. Ra1 {[%clk 0:00:08.8]} 68... Rg7 {[%clk 0:00:17.6]}
69. Rxg7 {[%clk 0:00:08.3]} 69... Kxg7 {[%clk 0:00:18.5]} 70. Kxb5 {[%clk
0:00:08.7]} 70... Kf6 {[%clk 0:00:17.4]} 71. Kc5 {[%clk 0:00:09.2]} 71... Ke5
{[%clk 0:00:17.1]} 72. b5 {[%clk 0:00:09.7]} 72... Rc8+ {[%clk 0:00:15.9]} 73.
Kb4 {[%clk 0:00:09.8]} 73... Ra8 {[%clk 0:00:11.1]} 74. b6 {[%clk 0:00:10.1]}
74... Kd6 {[%clk 0:00:10.6]} 75. Kb5 {[%clk 0:00:10.1]} 75... Ra3 {[%clk
0:00:07.6]} 76. Kb4 {[%clk 0:00:08.8]} 76... Ra6 {[%clk 0:00:06.7]} 77. Kb5
{[%clk 0:00:08.7]} 77... Ra3 {[%clk 0:00:06.9]} 78. Kb4 {[%clk 0:00:08.3]} 78...
Ra6 {[%clk 0:00:07.1]} 79. Kb5 {[%clk 0:00:07.9]} 79... Ra3 {[%clk 0:00:04.3]}
1/2-1/2

[Event "Early-Titled-Tuesday-Blitz-February-06-2024"]
[Site "Chess.com"]
[Date "2024.02.06"]
[Round "11"]
[White "starworld123"]
[Black "Polish_fighter3000"]
[Result "0-1"]
[WhiteElo "2831"]
[BlackElo "3051"]
[TimeControl "180+1"]
[EndTime "10:08:24 PST"]
[Termination "Polish_fighter3000 won by resignation"]

1. Nf3 {[%clk 0:02:50.7]} 1... c6 {[%clk 0:03:00.9]} 2. c4 {[%clk 0:02:50.2]}
2... Na6 {[%clk 0:03:00.8]} 3. e4 {[%clk 0:02:49.5]} 3... Nc7 {[%clk 0:03:01.7]}
4. d4 {[%clk 0:02:48.3]} 4... f6 {[%clk 0:03:02.6]} 5. Nc3 {[%clk 0:02:47.7]}
5... g6 {[%clk 0:03:03]} 6. Be2 {[%clk 0:02:45.7]} 6... Nh6 {[%clk 0:03:03.2]}
7. O-O {[%clk 0:02:45.4]} 7... Nf7 {[%clk 0:03:03.8]} 8. d5 {[%clk 0:02:44]}
8... e5 {[%clk 0:03:02.4]} 9. dxe6 {[%clk 0:02:42.3]} 9... dxe6 {[%clk
0:03:02.3]} 10. Qxd8+ {[%clk 0:02:33.9]} 10... Kxd8 {[%clk 0:03:03.2]} 11. Rd1+
{[%clk 0:02:33.2]} 11... Ke7 {[%clk 0:03:01]} 12. Be3 {[%clk 0:02:21.8]} 12...
e5 {[%clk 0:03:00.8]} 13. Rac1 {[%clk 0:02:19.4]} 13... Ne6 {[%clk 0:02:52.1]}
14. b4 {[%clk 0:02:15.7]} 14... Bh6 {[%clk 0:02:50.9]} 15. Bxh6 {[%clk
0:02:10.3]} 15... Nxh6 {[%clk 0:02:51.8]} 16. c5 {[%clk 0:02:08.6]} 16... a5
{[%clk 0:02:45.5]} 17. b5 {[%clk 0:01:29.2]} 17... Nf7 {[%clk 0:02:46.4]} 18.
Na4 {[%clk 0:01:27.9]} 18... Nf4 {[%clk 0:02:35.2]} 19. Bf1 {[%clk 0:01:24.9]}
19... Bg4 {[%clk 0:02:34.5]} 20. Nb6 {[%clk 0:01:20.1]} 20... Rad8 {[%clk
0:02:32.3]} 21. Nc4 {[%clk 0:01:12.3]} 21... Bxf3 {[%clk 0:02:31.3]} 22. gxf3
{[%clk 0:01:12.3]} 22... Ng5 {[%clk 0:02:26.1]} 23. Nxa5 {[%clk 0:01:10.8]}
23... Nxf3+ {[%clk 0:01:22.2]} 24. Kh1 {[%clk 0:01:10.9]} 24... cxb5 {[%clk
0:01:12.6]} 25. Nxb7 {[%clk 0:01:04.3]} 25... Rxd1 {[%clk 0:01:09.3]} 26. Rxd1
{[%clk 0:01:05.2]} 26... Ra8 {[%clk 0:01:09.1]} 27. c6 {[%clk 0:00:16.6]} 27...
Nd4 {[%clk 0:01:08.3]} 28. Rc1 {[%clk 0:00:12.8]} 28... Nfe6 {[%clk 0:00:57.4]}
29. Kg1 {[%clk 0:00:06.3]} 29... Nc7 {[%clk 0:00:53.3]} 30. Ra1 {[%clk
0:00:04.9]} 30... Ra3 {[%clk 0:00:42.2]} 31. Nc5 {[%clk 0:00:03.2]} 31... g5
{[%clk 0:00:37.2]} 32. Nd3 {[%clk 0:00:04.1]} 32... g4 {[%clk 0:00:35.6]} 33.
Nb4 {[%clk 0:00:04.2]} 33... Kd6 {[%clk 0:00:35.8]} 34. Rc1 {[%clk 0:00:04.4]}
34... h5 {[%clk 0:00:34.9]} 35. Nd5 {[%clk 0:00:04.9]} 35... Rxa2 {[%clk
0:00:24.7]} 36. Nxf6 {[%clk 0:00:05.6]} 36... b4 {[%clk 0:00:24.6]} 37. Bc4
{[%clk 0:00:03.7]} 37... b3 {[%clk 0:00:12.4]} 38. Rd1 {[%clk 0:00:04.3]} 38...
Kxc6 {[%clk 0:00:11.3]} 39. Rxd4 {[%clk 0:00:02.4]} 39... exd4 {[%clk
0:00:09.2]} 40. Bxb3 {[%clk 0:00:03.1]} 40... Ra1+ {[%clk 0:00:09.1]} 41. Kg2
{[%clk 0:00:03.7]} 41... d3 {[%clk 0:00:10]} 42. Nxh5 {[%clk 0:00:02.8]} 42...
d2 {[%clk 0:00:09.9]} 43. Ng3 {[%clk 0:00:02.2]} 43... Kc5 {[%clk 0:00:09]} 44.
Nf5 {[%clk 0:00:02.3]} 44... d1=Q {[%clk 0:00:03.9]} 45. Bxd1 {[%clk 0:00:02.9]}
45... Rxd1 {[%clk 0:00:04.6]} 46. Ne3 {[%clk 0:00:03.8]} 46... Re1 {[%clk
0:00:04.4]} 47. Kg3 {[%clk 0:00:03.7]} 47... Rg1+ {[%clk 0:00:03.7]} 48. Kf4
{[%clk 0:00:03.8]} 48... Ne6+ {[%clk 0:00:04]} 49. Ke5 {[%clk 0:00:03.7]} 49...
Nd4 {[%clk 0:00:03.8]} 50. Kf6 {[%clk 0:00:03]} 50... Re1 {[%clk 0:00:02.8]} 51.
e5 {[%clk 0:00:03.1]} 51... Re2 {[%clk 0:00:02.3]} 52. Nxg4 {[%clk 0:00:03.1]}
52... Nf3 {[%clk 0:00:02.3]} 53. e6 {[%clk 0:00:02.7]} 53... Kd6 {[%clk
0:00:02.4]} 54. Ne3 {[%clk 0:00:02.4]} 54... Rxf2 {[%clk 0:00:01.7]} 55. Nf5+
{[%clk 0:00:03.1]} 55... Kc6 {[%clk 0:00:02]} 56. e7 {[%clk 0:00:03.9]} 56...
Kd7 {[%clk 0:00:02.1]} 57. Kf7 {[%clk 0:00:02.8]} 57... Ne5+ {[%clk 0:00:02.2]}
58. Kf6 {[%clk 0:00:03.6]} 58... Ng4+ {[%clk 0:00:02.3]} 59. Kg5 {[%clk
0:00:03.5]} 59... Nxh2 {[%clk 0:00:02.6]} 60. Kf6 {[%clk 0:00:02.1]} 60... Ng4+
{[%clk 0:00:02.9]} 61. Kg5 {[%clk 0:00:02.5]} 61... Ne5 {[%clk 0:00:03.6]} 62.
Kf6 {[%clk 0:00:03.4]} 62... Nc6 {[%clk 0:00:03.8]} 63. Kg5 {[%clk 0:00:01.1]}
63... Nxe7 {[%clk 0:00:04.7]} 64. Ne3 {[%clk 0:00:01.1]} 64... Re2 {[%clk
0:00:04.8]} 65. Ng4 {[%clk 0:00:02]} 65... Ra2 {[%clk 0:00:05.2]} 66. Kf4 {[%clk
0:00:02.7]} 66... Kd8 {[%clk 0:00:05.9]} 67. Kg5 {[%clk 0:00:03.5]} 67... Nc8
{[%clk 0:00:06.4]} 68. Nf6 {[%clk 0:00:04.3]} 68... Nb6 {[%clk 0:00:07.3]} 69.
Kf5 {[%clk 0:00:05.2]} 69... Nd7 {[%clk 0:00:08]} 70. Nd5 {[%clk 0:00:05.4]}
70... Ra5 {[%clk 0:00:08.5]} 71. Ke6 {[%clk 0:00:06.3]} 71... Nf8+ {[%clk
0:00:08.5]} 72. Kd6 {[%clk 0:00:06.7]} 72... Nd7 {[%clk 0:00:08.4]} 73. Ke6
{[%clk 0:00:06.8]} 73... Ra6+ {[%clk 0:00:08.9]} 74. Kf5 {[%clk 0:00:07.4]}
74... Rd6 {[%clk 0:00:09.2]} 75. Nf4 {[%clk 0:00:07.8]} 75... Rf6+ {[%clk
0:00:08.8]} 76. Kg5 {[%clk 0:00:08]} 76... Ke8 {[%clk 0:00:08.1]} 77. Nd5 {[%clk
0:00:08.3]} 77... Rf1 {[%clk 0:00:08.5]} 78. Nf4 {[%clk 0:00:08.3]} 78... Ke7
{[%clk 0:00:08.7]} 79. Ng6+ {[%clk 0:00:07.6]} 79... Kd6 {[%clk 0:00:08.2]} 80.
Nf4 {[%clk 0:00:06.7]} 80... Nc5 {[%clk 0:00:08.2]} 81. Nh5 {[%clk 0:00:05.5]}
81... Ke5 {[%clk 0:00:07.8]} 82. Ng3 {[%clk 0:00:03.6]} 82... Ne4+ {[%clk
0:00:08.2]} 83. Kh4 {[%clk 0:00:04.5]} 83... Nxg3 {[%clk 0:00:07.8]} 84. Kxg3
{[%clk 0:00:05.4]} 0-1

[Event "Early-Titled-Tuesday-Blitz-February-06-2024"]
[Site "Chess.com"]
[Date "2024.02.06"]
[Round "11"]
[White "igorknyazev"]
[Black "kai_nov"]
[Result "0-1"]
[WhiteElo "2143"]
[BlackElo "2289"]
[TimeControl "180+1"]
[EndTime "10:08:33 PST"]
[Termination "kai_nov won on time"]

1. e4 {[%clk 0:03:00.1]} 1... c5 {[%clk 0:02:55.1]} 2. f4 {[%clk 0:02:58.7]}
2... d5 {[%clk 0:02:54.2]} 3. exd5 {[%clk 0:02:58.1]} 3... Nf6 {[%clk
0:02:53.2]} 4. Nf3 {[%clk 0:02:55.8]} 4... Nxd5 {[%clk 0:02:50.5]} 5. Bc4 {[%clk
0:02:49.6]} 5... e6 {[%clk 0:02:39.2]} 6. O-O {[%clk 0:02:49.8]} 6... Be7 {[%clk
0:02:37.2]} 7. d3 {[%clk 0:02:47.4]} 7... O-O {[%clk 0:02:34.9]} 8. Nc3 {[%clk
0:02:47.3]} 8... Nc6 {[%clk 0:02:32]} 9. Ne4 {[%clk 0:02:41.9]} 9... Nb6 {[%clk
0:02:29.2]} 10. Bb3 {[%clk 0:02:33.6]} 10... a5 {[%clk 0:02:20.4]} 11. a3 {[%clk
0:02:29.4]} 11... a4 {[%clk 0:02:18.3]} 12. Ba2 {[%clk 0:02:28.7]} 12... Nd4
{[%clk 0:02:08.4]} 13. Be3 {[%clk 0:02:27.3]} 13... Nf5 {[%clk 0:02:03.7]} 14.
Bf2 {[%clk 0:02:26.2]} 14... Qc7 {[%clk 0:01:48.9]} 15. c3 {[%clk 0:02:22.6]}
15... Bd7 {[%clk 0:01:40]} 16. g4 {[%clk 0:02:15]} 16... Nd6 {[%clk 0:01:35.2]}
17. Nxc5 {[%clk 0:02:11.8]} 17... Bc6 {[%clk 0:01:33.4]} 18. Bxe6 {[%clk
0:01:47.6]} 18... fxe6 {[%clk 0:01:25.9]} 19. Nxe6 {[%clk 0:01:46.9]} 19... Qd7
{[%clk 0:01:23.3]} 20. Nxf8 {[%clk 0:01:46.5]} 20... Qxg4+ {[%clk 0:01:20.4]}
21. Bg3 {[%clk 0:01:39.8]} 21... Nf5 {[%clk 0:01:11.6]} 22. Qe2 {[%clk
0:01:03.3]} 22... Nxg3 {[%clk 0:01:07.5]} 23. hxg3 {[%clk 0:01:01.1]} 23...
Qxg3+ {[%clk 0:01:06.1]} 24. Qg2 {[%clk 0:01:01.7]} 24... Qxg2+ {[%clk
0:01:03.3]} 25. Kxg2 {[%clk 0:01:01]} 25... Rxf8 {[%clk 0:01:03.7]} 26. Kg3
{[%clk 0:01:00.3]} 26... Nd5 {[%clk 0:00:59.1]} 27. Ne5 {[%clk 0:00:57.9]} 27...
Bd6 {[%clk 0:00:46.5]} 28. d4 {[%clk 0:00:54.7]} 28... Ne3 {[%clk 0:00:34.8]}
29. Rf2 {[%clk 0:00:51.9]} 29... Nf5+ {[%clk 0:00:27.8]} 30. Kg4 {[%clk
0:00:48.4]} 30... Bxe5 {[%clk 0:00:27.1]} 31. dxe5 {[%clk 0:00:47.5]} 31... Ne3+
{[%clk 0:00:26.7]} 32. Kg3 {[%clk 0:00:45.4]} 32... h5 {[%clk 0:00:26.3]} 33.
Re1 {[%clk 0:00:42.1]} 33... Nf5+ {[%clk 0:00:26.4]} 34. Kh2 {[%clk 0:00:41.6]}
34... Rd8 {[%clk 0:00:23.5]} 35. e6 {[%clk 0:00:40.6]} 35... Kf8 {[%clk
0:00:21.9]} 36. Re5 {[%clk 0:00:36.1]} 36... g6 {[%clk 0:00:20.6]} 37. Rfe2
{[%clk 0:00:32.1]} 37... Ke7 {[%clk 0:00:20]} 38. Re1 {[%clk 0:00:26.3]} 38...
Rd3 {[%clk 0:00:19.7]} 39. R1e2 {[%clk 0:00:22.7]} 39... Rd6 {[%clk 0:00:18.3]}
40. Kg1 {[%clk 0:00:20.5]} 40... Rd1+ {[%clk 0:00:18.2]} 41. Kf2 {[%clk
0:00:20.6]} 41... Rh1 {[%clk 0:00:18.1]} 42. Re1 {[%clk 0:00:17.8]} 42... Rxe1
{[%clk 0:00:17.6]} 43. Rxe1 {[%clk 0:00:16.2]} 43... Bd5 {[%clk 0:00:17.6]} 44.
Rg1 {[%clk 0:00:15.7]} 44... Kf6 {[%clk 0:00:17]} 45. e7 {[%clk 0:00:12.7]}
45... Nxe7 {[%clk 0:00:16.6]} 46. Rd1 {[%clk 0:00:12.7]} 46... Bc6 {[%clk
0:00:15.7]} 47. Rd4 {[%clk 0:00:12.1]} 47... Nf5 {[%clk 0:00:15.2]} 48. Rb4
{[%clk 0:00:11]} 48... h4 {[%clk 0:00:15.1]} 49. b3 {[%clk 0:00:10.1]} 49...
axb3 {[%clk 0:00:14.7]} 50. Rxb3 {[%clk 0:00:09.6]} 50... h3 {[%clk 0:00:14.8]}
51. Kg1 {[%clk 0:00:09.1]} 51... Kg7 {[%clk 0:00:12.4]} 52. Rb2 {[%clk
0:00:07.8]} 52... Kh6 {[%clk 0:00:11.6]} 53. Rh2 {[%clk 0:00:08]} 53... Bg2
{[%clk 0:00:11.2]} 54. a4 {[%clk 0:00:07.1]} 54... Ne3 {[%clk 0:00:09.9]} 55. a5
{[%clk 0:00:05.8]} 55... Ng4 {[%clk 0:00:09.4]} 56. Rxg2 {[%clk 0:00:04.8]}
56... hxg2 {[%clk 0:00:09.5]} 57. c4 {[%clk 0:00:04.9]} 57... Ne3 {[%clk
0:00:08.6]} 58. Kf2 {[%clk 0:00:04.7]} 58... Nxc4 {[%clk 0:00:08.2]} 59. Kxg2
{[%clk 0:00:04.7]} 59... Nxa5 {[%clk 0:00:08.3]} 60. Kf3 {[%clk 0:00:04.6]}
60... Kg7 {[%clk 0:00:07.9]} 61. Kg4 {[%clk 0:00:05.2]} 61... Kf6 {[%clk
0:00:08.1]} 62. f5 {[%clk 0:00:04.4]} 62... gxf5+ {[%clk 0:00:07.2]} 63. Kf4
{[%clk 0:00:02.8]} 63... b5 {[%clk 0:00:07.5]} 64. Ke3 {[%clk 0:00:02.7]} 64...
b4 {[%clk 0:00:08]} 65. Kd3 {[%clk 0:00:02.4]} 65... b3 {[%clk 0:00:08.5]} 66.
Kc3 {[%clk 0:00:02.4]} 66... f4 {[%clk 0:00:09]} 67. Kb2 {[%clk 0:00:01.7]}
67... f3 {[%clk 0:00:09.2]} 68. Kc1 {[%clk 0:00:00.8]} 68... f2 {[%clk
0:00:09.5]} 69. Kd2 {[%clk 0:00:00.7]} 69... f1=Q {[%clk 0:00:08.8]} 70. Kc3
{[%clk 0:00:01.1]} 70... Qc4+ {[%clk 0:00:08.1]} 71. Kb2 {[%clk 0:00:01.8]}
71... Qc2+ {[%clk 0:00:08]} 72. Ka3 {[%clk 0:00:01.8]} 72... Qc5+ {[%clk
0:00:07.7]} 73. Ka4 {[%clk 0:00:01.2]} 73... Qc6+ {[%clk 0:00:05.3]} 0-1